Workbook

Sheet TowerConfig
A1: ID | B1: name | D1: massge | E1: towerinfoIdGroup
A2: int | B2: int | D2: int | E2: int
A4: modelID | B4: 塔名称 | E4: 塔的详情效果Id组
A5: 1 | C5: 命运峰 | E5: 1

Sheet TowerInfoConfig
A1: ID | B1: groupId | C1: level | D1: name | F1: massge | G1: towerType | H1: typeValue | I1: reward | J1: rewardCount | K1: unlockValue
A2: int | B2: int | C2: int | D2: int | F2: int | G2: int | H2: int[] | I2: int[] | J2: int[] | K2: int
A4: modelID | B4: id组 | C4: 层 | G4: 1=战斗（levelbattleId） 2=剧情（剧情事件ID） | I4: 奖励 | K4: 解锁值 | L4: 道具1 | M4: 道具2 | N4: 数量1 | O4: 数量2 | P4: 等级 | R4: 组合1 | S4: 组合2
A5: 1 | B5: 1 | C5: 1 | E5: 第1层 | G5: 1 | H5: 2001 | I5: =CONCATENATE(M5,";",L5) -> 1401;1001 | J5: =CONCATENATE(O5,";",N5) -> 1;13000 | L5: 1001 | M5: 1401 | N5: =ROUND(VLOOKUP(P5,[1]ResourceLevelConfig!$A:$C,3,FALSE)*0.01,0)*1000 -> 13000 | O5: 1 | P5: 31 | R5: =_xlfn.TEXTJOIN(";",1,L5:M5) -> 1001;1401 | S5: =_xlfn.TEXTJOIN(";",1,N5:O5) -> 13000;1 | U5: =VLOOKUP(L5,[2]ItemConfig!$A:$C,3,FALSE)&"×"&N5 -> 灵石×13000 | V5: =VLOOKUP(M5,[2]ItemConfig!$A:$C,3,FALSE)&"×"&O5 -> 凡品增元丹×1
A6: 2 | B6: 1 | C6: 2 | E6: 第2层 | G6: 1 | H6: 2002 | I6: =CONCATENATE(M6,";",L6) -> 1701;1001 | J6: =CONCATENATE(O6,";",N6) -> 1;13000 | L6: 1001 | M6: 1701 | N6: =ROUND(VLOOKUP(P6,[1]ResourceLevelConfig!$A:$C,3,FALSE)*0.01,0)*1000 -> 13000 | O6: 1 | P6: 33 | R6: =_xlfn.TEXTJOIN(";",1,L6:M6) -> 1001;1701 | S6: =_xlfn.TEXTJOIN(";",1,N6:O6) -> 13000;1 | U6: =VLOOKUP(L6,[2]ItemConfig!$A:$C,3,FALSE)&"×"&N6 -> 灵石×13000 | V6: =VLOOKUP(M6,[2]ItemConfig!$A:$C,3,FALSE)&"×"&O6 -> 清识还元丹×1
A7: 3 | B7: 1 | C7: 3 | E7: 第3层 | G7: 1 | H7: 2003 | I7: 21012;1001 | J7: 1;14000 | L7: 1001 | M7: 21012 | N7: =ROUND(VLOOKUP(P7,[1]ResourceLevelConfig!$A:$C,3,FALSE)*0.01,0)*1000 -> 14000 | O7: 1 | P7: 36 | R7: 1001;21012 | S7: 14000;1 | U7: =VLOOKUP(L7,[2]ItemConfig!$A:$C,3,FALSE)&"×"&N7 -> 灵石×14000 | V7: =VLOOKUP(M7,[2]ItemConfig!$A:$C,3,FALSE)&"×"&O7 -> 紫色神识符×1
A8: 4 | B8: 1 | C8: 4 | E8: 第4层 | G8: 1 | H8: 2004 | I8: 1304;1001 | J8: 1;14000 | L8: 1001 | M8: 1304 | N8: =ROUND(VLOOKUP(P8,[1]ResourceLevelConfig!$A:$C,3,FALSE)*0.01,0)*1000 -> 14000 | O8: 1 | P8: 39 | R8: 1001;1304 | S8: 14000;1 | U8: =VLOOKUP(L8,[2]ItemConfig!$A:$C,3,FALSE)&"×"&N8 -> 灵石×14000 | V8: =VLOOKUP(M8,[2]ItemConfig!$A:$C,3,FALSE)&"×"&O8 -> 固元丹×1
A9: 5 | B9: 1 | C9: 5 | E9: 第5层 | G9: 1 | H9: 2005 | I9: 1401;1001 | J9: 1;14000 | L9: 1001 | M9: 1401 | N9: =ROUND(VLOOKUP(P9,[1]ResourceLevelConfig!$A:$C,3,FALSE)*0.01,0)*1000 -> 14000 | O9: 1 | P9: =P5+10 -> 41 | R9: 1001;1401 | S9: 14000;1 | U9: =VLOOKUP(L9,[2]ItemConfig!$A:$C,3,FALSE)&"×"&N9 -> 灵石×14000 | V9: =VLOOKUP(M9,[2]ItemConfig!$A:$C,3,FALSE)&"×"&O9 -> 凡品增元丹×1
A10: 6 | B10: 1 | C10: 6 | E10: 第6层 | G10: 1 | H10: 2006 | I10: 1701;1001 | J10: 1;14000 | L10: 1001 | M10: 1701 | N10: =ROUND(VLOOKUP(P10,[1]ResourceLevelConfig!$A:$C,3,FALSE)*0.01,0)*1000 -> 14000 | O10: 1 | P10: =P6+10 -> 43 | R10: 1001;1701 | S10: 14000;1 | U10: =VLOOKUP(L10,[2]ItemConfig!$A:$C,3,FALSE)&"×"&N10 -> 灵石×14000 | V10: =VLOOKUP(M10,[2]ItemConfig!$A:$C,3,FALSE)&"×"&O10 -> 清识还元丹×1
A11: 7 | B11: 1 | C11: 7 | E11: 第7层 | G11: 1 | H11: 2007 | I11: 21012;1001 | J11: 1;15000 | L11: 1001 | M11: 21012 | N11: =ROUND(VLOOKUP(P11,[1]ResourceLevelConfig!$A:$C,3,FALSE)*0.01,0)*1000 -> 15000 | O11: 1 | P11: 46 | R11: 1001;21012 | S11: 15000;1 | U11: =VLOOKUP(L11,[2]ItemConfig!$A:$C,3,FALSE)&"×"&N11 -> 灵石×15000 | V11: =VLOOKUP(M11,[2]ItemConfig!$A:$C,3,FALSE)&"×"&O11 -> 紫色神识符×1
A12: 8 | B12: 1 | C12: 8 | E12: 第8层 | G12: 1 | H12: 2008 | I12: 1305;1001 | J12: 1;15000 | L12: 1001 | M12: =M8+1 -> 1305 | N12: =ROUND(VLOOKUP(P12,[1]ResourceLevelConfig!$A:$C,3,FALSE)*0.01,0)*1000 -> 15000 | O12: 1 | P12: 49 | R12: 1001;1305 | S12: 15000;1 | U12: =VLOOKUP(L12,[2]ItemConfig!$A:$C,3,FALSE)&"×"&N12 -> 灵石×15000 | V12: =VLOOKUP(M12,[2]ItemConfig!$A:$C,3,FALSE)&"×"&O12 -> 青灵果×1
A13: 9 | B13: 1 | C13: 9 | E13: 第9层 | G13: 1 | H13: 2009 | I13: 1402;1001 | J13: 1;15000 | L13: 1001 | M13: 1402 | N13: =ROUND(VLOOKUP(P13,[1]ResourceLevelConfig!$A:$C,3,FALSE)*0.01,0)*1000 -> 15000 | O13: 1 | P13: 51 | R13: 1001;1402 | S13: 15000;1 | U13: =VLOOKUP(L13,[2]ItemConfig!$A:$C,3,FALSE)&"×"&N13 -> 灵石×15000 | V13: =VLOOKUP(M13,[2]ItemConfig!$A:$C,3,FALSE)&"×"&O13 -> 良品增元丹×1
A14: 10 | B14: 1 | C14: 10 | E14: 第10层 | G14: 1 | H14: 2010 | I14: 1702;1001 | J14: 1;15000 | L14: 1001 | M14: 1702 | N14: =ROUND(VLOOKUP(P14,[1]ResourceLevelConfig!$A:$C,3,FALSE)*0.01,0)*1000 -> 15000 | O14: 1 | P14: 53 | R14: 1001;1702 | S14: 15000;1 | U14: =VLOOKUP(L14,[2]ItemConfig!$A:$C,3,FALSE)&"×"&N14 -> 灵石×15000 | V14: =VLOOKUP(M14,[2]ItemConfig!$A:$C,3,FALSE)&"×"&O14 -> 归识还元丹×1
A15: 11 | B15: 1 | C15: 11 | E15: 第11层 | G15: 1 | H15: 2011 | I15: 21012;1001 | J15: 1;16000 | L15: 1001 | M15: 21012 | N15: =ROUND(VLOOKUP(P15,[1]ResourceLevelConfig!$A:$C,3,FALSE)*0.01,0)*1000 -> 16000 | O15: 1 | P15: 56 | R15: 1001;21012 | S15: 16000;1 | U15: =VLOOKUP(L15,[2]ItemConfig!$A:$C,3,FALSE)&"×"&N15 -> 灵石×16000 | V15: =VLOOKUP(M15,[2]ItemConfig!$A:$C,3,FALSE)&"×"&O15 -> 紫色神识符×1
A16: 12 | B16: 1 | C16: 12 | E16: 第12层 | G16: 1 | H16: 2012 | I16: 1306;1001 | J16: 1;16000 | L16: 1001 | M16: =M12+1 -> 1306 | N16: =ROUND(VLOOKUP(P16,[1]ResourceLevelConfig!$A:$C,3,FALSE)*0.01,0)*1000 -> 16000 | O16: 1 | P16: 59 | R16: 1001;1306 | S16: 16000;1 | U16: =VLOOKUP(L16,[2]ItemConfig!$A:$C,3,FALSE)&"×"&N16 -> 灵石×16000 | V16: =VLOOKUP(M16,[2]ItemConfig!$A:$C,3,FALSE)&"×"&O16 -> 金阳果×1
A17: 13 | B17: 1 | C17: 13 | E17: 第13层 | G17: 1 | H17: 2013 | I17: 1402;1001 | J17: 1;16000 | L17: 1001 | M17: 1402 | N17: =ROUND(VLOOKUP(P17,[1]ResourceLevelConfig!$A:$C,3,FALSE)*0.01,0)*1000 -> 16000 | O17: 1 | P17: 61 | R17: 1001;1402 | S17: 16000;1 | U17: =VLOOKUP(L17,[2]ItemConfig!$A:$C,3,FALSE)&"×"&N17 -> 灵石×16000 | V17: =VLOOKUP(M17,[2]ItemConfig!$A:$C,3,FALSE)&"×"&O17 -> 良品增元丹×1
A18: 14 | B18: 1 | C18: 14 | E18: 第14层 | G18: 1 | H18: 2014 | I18: 1702;1001 | J18: 1;16000 | L18: 1001 | M18: 1702 | N18: =ROUND(VLOOKUP(P18,[1]ResourceLevelConfig!$A:$C,3,FALSE)*0.01,0)*1000 -> 16000 | O18: 1 | P18: 63 | R18: 1001;1702 | S18: 16000;1 | U18: =VLOOKUP(L18,[2]ItemConfig!$A:$C,3,FALSE)&"×"&N18 -> 灵石×16000 | V18: =VLOOKUP(M18,[2]ItemConfig!$A:$C,3,FALSE)&"×"&O18 -> 归识还元丹×1
A19: 15 | B19: 1 | C19: 15 | E19: 第15层 | G19: 1 | H19: 2015 | I19: 21012;1001 | J19: 1;17000 | L19: 1001 | M19: 21012 | N19: =ROUND(VLOOKUP(P19,[1]ResourceLevelConfig!$A:$C,3,FALSE)*0.01,0)*1000 -> 17000 | O19: 1 | P19: 66 | R19: 1001;21012 | S19: 17000;1 | U19: =VLOOKUP(L19,[2]ItemConfig!$A:$C,3,FALSE)&"×"&N19 -> 灵石×17000 | V19: =VLOOKUP(M19,[2]ItemConfig!$A:$C,3,FALSE)&"×"&O19 -> 紫色神识符×1
A20: 16 | B20: 1 | C20: 16 | E20: 第16层 | G20: 1 | H20: 2016 | I20: 1307;1001 | J20: 1;17000 | L20: 1001 | M20: =M16+1 -> 1307 | N20: =ROUND(VLOOKUP(P20,[1]ResourceLevelConfig!$A:$C,3,FALSE)*0.01,0)*1000 -> 17000 | O20: 1 | P20: 69 | R20: 1001;1307 | S20: 17000;1 | U20: =VLOOKUP(L20,[2]ItemConfig!$A:$C,3,FALSE)&"×"&N20 -> 灵石×17000 | V20: =VLOOKUP(M20,[2]ItemConfig!$A:$C,3,FALSE)&"×"&O20 -> 金灵丹×1
A21: 17 | B21: 1 | C21: 17 | E21: 第17层 | G21: 1 | H21: 2017 | I21: 1402;1001 | J21: 1;17000 | L21: 1001 | M21: 1402 | N21: =ROUND(VLOOKUP(P21,[1]ResourceLevelConfig!$A:$C,3,FALSE)*0.01,0)*1000 -> 17000 | O21: 1 | P21: 71 | R21: 1001;1402 | S21: 17000;1 | U21: =VLOOKUP(L21,[2]ItemConfig!$A:$C,3,FALSE)&"×"&N21 -> 灵石×17000 | V21: =VLOOKUP(M21,[2]ItemConfig!$A:$C,3,FALSE)&"×"&O21 -> 良品增元丹×1
A22: 18 | B22: 1 | C22: 18 | E22: 第18层 | G22: 1 | H22: 2018 | I22: 1702;1001 | J22: 1;17000 | L22: 1001 | M22: 1702 | N22: =ROUND(VLOOKUP(P22,[1]ResourceLevelConfig!$A:$C,3,FALSE)*0.01,0)*1000 -> 17000 | O22: 1 | P22: 73 | R22: 1001;1702 | S22: 17000;1 | U22: =VLOOKUP(L22,[2]ItemConfig!$A:$C,3,FALSE)&"×"&N22 -> 灵石×17000 | V22: =VLOOKUP(M22,[2]ItemConfig!$A:$C,3,FALSE)&"×"&O22 -> 归识还元丹×1
A23: 19 | B23: 1 | C23: 19 | E23: 第19层 | G23: 1 | H23: 2019 | I23: 21012;1001 | J23: 1;18000 | L23: 1001 | M23: 21012 | N23: =ROUND(VLOOKUP(P23,[1]ResourceLevelConfig!$A:$C,3,FALSE)*0.01,0)*1000 -> 18000 | O23: 1 | P23: 76 | R23: 1001;21012 | S23: 18000;1 | U23: =VLOOKUP(L23,[2]ItemConfig!$A:$C,3,FALSE)&"×"&N23 -> 灵石×18000 | V23: =VLOOKUP(M23,[2]ItemConfig!$A:$C,3,FALSE)&"×"&O23 -> 紫色神识符×1
A24: 20 | B24: 1 | C24: 20 | E24: 第20层 | G24: 1 | H24: 2020 | I24: 1308;1001 | J24: 1;18000 | L24: 1001 | M24: =M20+1 -> 1308 | N24: =ROUND(VLOOKUP(P24,[1]ResourceLevelConfig!$A:$C,3,FALSE)*0.01,0)*1000 -> 18000 | O24: 1 | P24: 79 | R24: 1001;1308 | S24: 18000;1 | U24: =VLOOKUP(L24,[2]ItemConfig!$A:$C,3,FALSE)&"×"&N24 -> 灵石×18000 | V24: =VLOOKUP(M24,[2]ItemConfig!$A:$C,3,FALSE)&"×"&O24 -> 紫霞芝×1
A25: 21 | B25: 1 | C25: 21 | E25: 第21层 | G25: 1 | H25: 2021 | I25: 1402;1001 | J25: 1;18000 | L25: 1001 | M25: 1402 | N25: =ROUND(VLOOKUP(P25,[1]ResourceLevelConfig!$A:$C,3,FALSE)*0.01,0)*1000 -> 18000 | O25: 1 | P25: 81 | R25: 1001;1402 | S25: 18000;1 | U25: =VLOOKUP(L25,[2]ItemConfig!$A:$C,3,FALSE)&"×"&N25 -> 灵石×18000 | V25: =VLOOKUP(M25,[2]ItemConfig!$A:$C,3,FALSE)&"×"&O25 -> 良品增元丹×1
A26: 22 | B26: 1 | C26: 22 | E26: 第22层 | G26: 1 | H26: 2022 | I26: 1702;1001 | J26: 1;18000 | L26: 1001 | M26: 1702 | N26: =ROUND(VLOOKUP(P26,[1]ResourceLevelConfig!$A:$C,3,FALSE)*0.01,0)*1000 -> 18000 | O26: 1 | P26: 83 | R26: 1001;1702 | S26: 18000;1 | U26: =VLOOKUP(L26,[2]ItemConfig!$A:$C,3,FALSE)&"×"&N26 -> 灵石×18000 | V26: =VLOOKUP(M26,[2]ItemConfig!$A:$C,3,FALSE)&"×"&O26 -> 归识还元丹×1
A27: 23 | B27: 1 | C27: 23 | E27: 第23层 | G27: 1 | H27: 2023 | I27: 21012;1001 | J27: 1;19000 | L27: 1001 | M27: 21012 | N27: =ROUND(VLOOKUP(P27,[1]ResourceLevelConfig!$A:$C,3,FALSE)*0.01,0)*1000 -> 19000 | O27: 1 | P27: 86 | R27: 1001;21012 | S27: 19000;1 | U27: =VLOOKUP(L27,[2]ItemConfig!$A:$C,3,FALSE)&"×"&N27 -> 灵石×19000 | V27: =VLOOKUP(M27,[2]ItemConfig!$A:$C,3,FALSE)&"×"&O27 -> 紫色神识符×1
A28: 24 | B28: 1 | C28: 24 | E28: 第24层 | G28: 1 | H28: 2024 | I28: 1309;1001 | J28: 1;19000 | L28: 1001 | M28: =M24+1 -> 1309 | N28: =ROUND(VLOOKUP(P28,[1]ResourceLevelConfig!$A:$C,3,FALSE)*0.01,0)*1000 -> 19000 | O28: 1 | P28: 89 | R28: 1001;1309 | S28: 19000;1 | U28: =VLOOKUP(L28,[2]ItemConfig!$A:$C,3,FALSE)&"×"&N28 -> 灵石×19000 | V28: =VLOOKUP(M28,[2]ItemConfig!$A:$C,3,FALSE)&"×"&O28 -> 九窍芝×1
A29: 25 | B29: 1 | C29: 25 | E29: 第25层 | G29: 1 | H29: 2025 | I29: 1402;1001 | J29: 1;19000 | L29: 1001 | M29: 1402 | N29: =ROUND(VLOOKUP(P29,[1]ResourceLevelConfig!$A:$C,3,FALSE)*0.01,0)*1000 -> 19000 | O29: 1 | P29: 91 | R29: 1001;1402 | S29: 19000;1 | U29: =VLOOKUP(L29,[2]ItemConfig!$A:$C,3,FALSE)&"×"&N29 -> 灵石×19000 | V29: =VLOOKUP(M29,[2]ItemConfig!$A:$C,3,FALSE)&"×"&O29 -> 良品增元丹×1
A30: 26 | B30: 1 | C30: 26 | E30: 第26层 | G30: 1 | H30: 2026 | I30: 1702;1001 | J30: 1;19000 | L30: 1001 | M30: 1702 | N30: =ROUND(VLOOKUP(P30,[1]ResourceLevelConfig!$A:$C,3,FALSE)*0.01,0)*1000 -> 19000 | O30: 1 | P30: 93 | R30: 1001;1702 | S30: 19000;1 | U30: =VLOOKUP(L30,[2]ItemConfig!$A:$C,3,FALSE)&"×"&N30 -> 灵石×19000 | V30: =VLOOKUP(M30,[2]ItemConfig!$A:$C,3,FALSE)&"×"&O30 -> 归识还元丹×1
A31: 27 | B31: 1 | C31: 27 | E31: 第27层 | G31: 1 | H31: 2027 | I31: 21012;1001 | J31: 1;20000 | L31: 1001 | M31: 21012 | N31: =ROUND(VLOOKUP(P31,[1]ResourceLevelConfig!$A:$C,3,FALSE)*0.01,0)*1000 -> 20000 | O31: 1 | P31: 96 | R31: 1001;21012 | S31: 20000;1 | U31: =VLOOKUP(L31,[2]ItemConfig!$A:$C,3,FALSE)&"×"&N31 -> 灵石×20000 | V31: =VLOOKUP(M31,[2]ItemConfig!$A:$C,3,FALSE)&"×"&O31 -> 紫色神识符×1
A32: 28 | B32: 1 | C32: 28 | E32: 第28层 | G32: 1 | H32: 2028 | I32: 1310;1001 | J32: 1;20000 | L32: 1001 | M32: =M28+1 -> 1310 | N32: =ROUND(VLOOKUP(P32,[1]ResourceLevelConfig!$A:$C,3,FALSE)*0.01,0)*1000 -> 20000 | O32: 1 | P32: 99 | R32: 1001;1310 | S32: 20000;1 | U32: =VLOOKUP(L32,[2]ItemConfig!$A:$C,3,FALSE)&"×"&N32 -> 灵石×20000 | V32: =VLOOKUP(M32,[2]ItemConfig!$A:$C,3,FALSE)&"×"&O32 -> 婴化丹×1
A33: 29 | B33: 1 | C33: 29 | E33: 第29层 | G33: 1 | H33: 2029 | I33: 1402;1001 | J33: 1;20000 | L33: 1001 | M33: 1402 | N33: =ROUND(VLOOKUP(P33,[1]ResourceLevelConfig!$A:$C,3,FALSE)*0.01,0)*1000 -> 20000 | O33: 1 | P33: 101 | R33: 1001;1402 | S33: 20000;1 | U33: =VLOOKUP(L33,[2]ItemConfig!$A:$C,3,FALSE)&"×"&N33 -> 灵石×20000 | V33: =VLOOKUP(M33,[2]ItemConfig!$A:$C,3,FALSE)&"×"&O33 -> 良品增元丹×1
A34: 30 | B34: 1 | C34: 30 | E34: 第30层 | G34: 1 | H34: 2030 | I34: 1702;1001 | J34: 1;20000 | L34: 1001 | M34: 1702 | N34: =ROUND(VLOOKUP(P34,[1]ResourceLevelConfig!$A:$C,3,FALSE)*0.01,0)*1000 -> 20000 | O34: 1 | P34: 103 | R34: 1001;1702 | S34: 20000;1 | U34: =VLOOKUP(L34,[2]ItemConfig!$A:$C,3,FALSE)&"×"&N34 -> 灵石×20000 | V34: =VLOOKUP(M34,[2]ItemConfig!$A:$C,3,FALSE)&"×"&O34 -> 归识还元丹×1
A35: 31 | B35: 1 | C35: 31 | E35: 第31层 | G35: 1 | H35: 2031 | I35: 21012;1001 | J35: 1;21000 | L35: 1001 | M35: 21012 | N35: =ROUND(VLOOKUP(P35,[1]ResourceLevelConfig!$A:$C,3,FALSE)*0.01,0)*1000 -> 21000 | O35: 1 | P35: 106 | R35: 1001;21012 | S35: 21000;1 | U35: =VLOOKUP(L35,[2]ItemConfig!$A:$C,3,FALSE)&"×"&N35 -> 灵石×21000 | V35: =VLOOKUP(M35,[2]ItemConfig!$A:$C,3,FALSE)&"×"&O35 -> 紫色神识符×1
A36: 32 | B36: 1 | C36: 32 | E36: 第32层 | G36: 1 | H36: 2032 | I36: 1311;1001 | J36: 1;21000 | L36: 1001 | M36: =M32+1 -> 1311 | N36: =ROUND(VLOOKUP(P36,[1]ResourceLevelConfig!$A:$C,3,FALSE)*0.01,0)*1000 -> 21000 | O36: 1 | P36: 109 | R36: 1001;1311 | S36: 21000;1 | U36: =VLOOKUP(L36,[2]ItemConfig!$A:$C,3,FALSE)&"×"&N36 -> 灵石×21000 | V36: =VLOOKUP(M36,[2]ItemConfig!$A:$C,3,FALSE)&"×"&O36 -> 玄婴花×1
A37: 33 | B37: 1 | C37: 33 | E37: 第33层 | G37: 1 | H37: 2033 | I37: 1403;1001 | J37: 1;21000 | L37: 1001 | M37: 1403 | N37: =ROUND(VLOOKUP(P37,[1]ResourceLevelConfig!$A:$C,3,FALSE)*0.01,0)*1000 -> 21000 | O37: 1 | P37: 111 | R37: 1001;1403 | S37: 21000;1 | U37: =VLOOKUP(L37,[2]ItemConfig!$A:$C,3,FALSE)&"×"&N37 -> 灵石×21000 | V37: =VLOOKUP(M37,[2]ItemConfig!$A:$C,3,FALSE)&"×"&O37 -> 上品增元丹×1
A38: 34 | B38: 1 | C38: 34 | E38: 第34层 | G38: 1 | H38: 2034 | I38: 1702;1001 | J38: 1;21000 | L38: 1001 | M38: 1702 | N38: =ROUND(VLOOKUP(P38,[1]ResourceLevelConfig!$A:$C,3,FALSE)*0.01,0)*1000 -> 21000 | O38: 1 | P38: 113 | R38: 1001;1702 | S38: 21000;1 | U38: =VLOOKUP(L38,[2]ItemConfig!$A:$C,3,FALSE)&"×"&N38 -> 灵石×21000 | V38: =VLOOKUP(M38,[2]ItemConfig!$A:$C,3,FALSE)&"×"&O38 -> 归识还元丹×1
A39: 35 | B39: 1 | C39: 35 | E39: 第35层 | G39: 1 | H39: 2035 | I39: 21012;1001 | J39: 1;22000 | L39: 1001 | M39: 21012 | N39: =ROUND(VLOOKUP(P39,[1]ResourceLevelConfig!$A:$C,3,FALSE)*0.01,0)*1000 -> 22000 | O39: 1 | P39: 116 | R39: 1001;21012 | S39: 22000;1 | U39: =VLOOKUP(L39,[2]ItemConfig!$A:$C,3,FALSE)&"×"&N39 -> 灵石×22000 | V39: =VLOOKUP(M39,[2]ItemConfig!$A:$C,3,FALSE)&"×"&O39 -> 紫色神识符×1
A40: 36 | B40: 1 | C40: 36 | E40: 第36层 | G40: 1 | H40: 2036 | I40: 1312;1001 | J40: 1;22000 | L40: 1001 | M40: =M36+1 -> 1312 | N40: =ROUND(VLOOKUP(P40,[1]ResourceLevelConfig!$A:$C,3,FALSE)*0.01,0)*1000 -> 22000 | O40: 1 | P40: 119 | R40: 1001;1312 | S40: 22000;1 | U40: =VLOOKUP(L40,[2]ItemConfig!$A:$C,3,FALSE)&"×"&N40 -> 灵石×22000 | V40: =VLOOKUP(M40,[2]ItemConfig!$A:$C,3,FALSE)&"×"&O40 -> 玄冥髓×1
A41: 37 | B41: 1 | C41: 37 | E41: 第37层 | G41: 1 | H41: 2037 | I41: 1403;1001 | J41: 1;22000 | L41: 1001 | M41: 1403 | N41: =ROUND(VLOOKUP(P41,[1]ResourceLevelConfig!$A:$C,3,FALSE)*0.01,0)*1000 -> 22000 | O41: 1 | P41: 121 | R41: 1001;1403 | S41: 22000;1 | U41: =VLOOKUP(L41,[2]ItemConfig!$A:$C,3,FALSE)&"×"&N41 -> 灵石×22000 | V41: =VLOOKUP(M41,[2]ItemConfig!$A:$C,3,FALSE)&"×"&O41 -> 上品增元丹×1
A42: 38 | B42: 1 | C42: 38 | E42: 第38层 | G42: 1 | H42: 2038 | I42: 1702;1001 | J42: 1;22000 | L42: 1001 | M42: 1702 | N42: =ROUND(VLOOKUP(P42,[1]ResourceLevelConfig!$A:$C,3,FALSE)*0.01,0)*1000 -> 22000 | O42: 1 | P42: 123 | R42: 1001;1702 | S42: 22000;1 | U42: =VLOOKUP(L42,[2]ItemConfig!$A:$C,3,FALSE)&"×"&N42 -> 灵石×22000 | V42: =VLOOKUP(M42,[2]ItemConfig!$A:$C,3,FALSE)&"×"&O42 -> 归识还元丹×1
A43: 39 | B43: 1 | C43: 39 | E43: 第39层 | G43: 1 | H43: 2039 | I43: 21012;1001 | J43: 1;23000 | L43: 1001 | M43: 21012 | N43: =ROUND(VLOOKUP(P43,[1]ResourceLevelConfig!$A:$C,3,FALSE)*0.01,0)*1000 -> 23000 | O43: 1 | P43: 126 | R43: 1001;21012 | S43: 23000;1 | U43: =VLOOKUP(L43,[2]ItemConfig!$A:$C,3,FALSE)&"×"&N43 -> 灵石×23000 | V43: =VLOOKUP(M43,[2]ItemConfig!$A:$C,3,FALSE)&"×"&O43 -> 紫色神识符×1
A44: 40 | B44: 1 | C44: 40 | E44: 第40层 | G44: 1 | H44: 2040 | I44: 1313;1001 | J44: 1;23000 | L44: 1001 | M44: =M40+1 -> 1313 | N44: =ROUND(VLOOKUP(P44,[1]ResourceLevelConfig!$A:$C,3,FALSE)*0.01,0)*1000 -> 23000 | O44: 1 | P44: 129 | R44: 1001;1313 | S44: 23000;1 | U44: =VLOOKUP(L44,[2]ItemConfig!$A:$C,3,FALSE)&"×"&N44 -> 灵石×23000 | V44: =VLOOKUP(M44,[2]ItemConfig!$A:$C,3,FALSE)&"×"&O44 -> 聚神丹×1
A45: 41 | B45: 1 | C45: 41 | E45: 第41层 | G45: 1 | H45: 2041 | I45: 1403;1001 | J45: 1;23000 | L45: 1001 | M45: 1403 | N45: =ROUND(VLOOKUP(P45,[1]ResourceLevelConfig!$A:$C,3,FALSE)*0.01,0)*1000 -> 23000 | O45: 1 | P45: 131 | R45: 1001;1403 | S45: 23000;1 | U45: =VLOOKUP(L45,[2]ItemConfig!$A:$C,3,FALSE)&"×"&N45 -> 灵石×23000 | V45: =VLOOKUP(M45,[2]ItemConfig!$A:$C,3,FALSE)&"×"&O45 -> 上品增元丹×1
A46: 42 | B46: 1 | C46: 42 | E46: 第42层 | G46: 1 | H46: 2042 | I46: 1702;1001 | J46: 1;23000 | L46: 1001 | M46: 1702 | N46: =ROUND(VLOOKUP(P46,[1]ResourceLevelConfig!$A:$C,3,FALSE)*0.01,0)*1000 -> 23000 | O46: 1 | P46: 133 | R46: 1001;1702 | S46: 23000;1 | U46: =VLOOKUP(L46,[2]ItemConfig!$A:$C,3,FALSE)&"×"&N46 -> 灵石×23000 | V46: =VLOOKUP(M46,[2]ItemConfig!$A:$C,3,FALSE)&"×"&O46 -> 归识还元丹×1
A47: 43 | B47: 1 | C47: 43 | E47: 第43层 | G47: 1 | H47: 2043 | I47: 21012;1001 | J47: 1;24000 | L47: 1001 | M47: 21012 | N47: =ROUND(VLOOKUP(P47,[1]ResourceLevelConfig!$A:$C,3,FALSE)*0.01,0)*1000 -> 24000 | O47: 1 | P47: 136 | R47: 1001;21012 | S47: 24000;1 | U47: =VLOOKUP(L47,[2]ItemConfig!$A:$C,3,FALSE)&"×"&N47 -> 灵石×24000 | V47: =VLOOKUP(M47,[2]ItemConfig!$A:$C,3,FALSE)&"×"&O47 -> 紫色神识符×1
A48: 44 | B48: 1 | C48: 44 | E48: 第44层 | G48: 1 | H48: 2044 | I48: 1314;1001 | J48: 1;24000 | L48: 1001 | M48: =M44+1 -> 1314 | N48: =ROUND(VLOOKUP(P48,[1]ResourceLevelConfig!$A:$C,3,FALSE)*0.01,0)*1000 -> 24000 | O48: 1 | P48: 139 | R48: 1001;1314 | S48: 24000;1 | U48: =VLOOKUP(L48,[2]ItemConfig!$A:$C,3,FALSE)&"×"&N48 -> 灵石×24000 | V48: =VLOOKUP(M48,[2]ItemConfig!$A:$C,3,FALSE)&"×"&O48 -> 太虚花×1
A49: 45 | B49: 1 | C49: 45 | E49: 第45层 | G49: 1 | H49: 2045 | I49: 1403;1001 | J49: 1;24000 | L49: 1001 | M49: 1403 | N49: =ROUND(VLOOKUP(P49,[1]ResourceLevelConfig!$A:$C,3,FALSE)*0.01,0)*1000 -> 24000 | O49: 1 | P49: 141 | R49: 1001;1403 | S49: 24000;1 | U49: =VLOOKUP(L49,[2]ItemConfig!$A:$C,3,FALSE)&"×"&N49 -> 灵石×24000 | V49: =VLOOKUP(M49,[2]ItemConfig!$A:$C,3,FALSE)&"×"&O49 -> 上品增元丹×1
A50: 46 | B50: 1 | C50: 46 | E50: 第46层 | G50: 1 | H50: 2046 | I50: 1702;1001 | J50: 1;25000 | L50: 1001 | M50: 1702 | N50: =ROUND(VLOOKUP(P50,[1]ResourceLevelConfig!$A:$C,3,FALSE)*0.01,0)*1000 -> 25000 | O50: 1 | P50: 143 | R50: 1001;1702 | S50: 25000;1 | U50: =VLOOKUP(L50,[2]ItemConfig!$A:$C,3,FALSE)&"×"&N50 -> 灵石×25000 | V50: =VLOOKUP(M50,[2]ItemConfig!$A:$C,3,FALSE)&"×"&O50 -> 归识还元丹×1
A51: 47 | B51: 1 | C51: 47 | E51: 第47层 | G51: 1 | H51: 2047 | I51: 21012;1001 | J51: 1;25000 | L51: 1001 | M51: 21012 | N51: =ROUND(VLOOKUP(P51,[1]ResourceLevelConfig!$A:$C,3,FALSE)*0.01,0)*1000 -> 25000 | O51: 1 | P51: 146 | R51: 1001;21012 | S51: 25000;1 | U51: =VLOOKUP(L51,[2]ItemConfig!$A:$C,3,FALSE)&"×"&N51 -> 灵石×25000 | V51: =VLOOKUP(M51,[2]ItemConfig!$A:$C,3,FALSE)&"×"&O51 -> 紫色神识符×1
A52: 48 | B52: 1 | C52: 48 | E52: 第48层 | G52: 1 | H52: 2048 | I52: 1315;1001 | J52: 1;25000 | L52: 1001 | M52: =M48+1 -> 1315 | N52: =ROUND(VLOOKUP(P52,[1]ResourceLevelConfig!$A:$C,3,FALSE)*0.01,0)*1000 -> 25000 | O52: 1 | P52: 149 | R52: 1001;1315 | S52: 25000;1 | U52: =VLOOKUP(L52,[2]ItemConfig!$A:$C,3,FALSE)&"×"&N52 -> 灵石×25000 | V52: =VLOOKUP(M52,[2]ItemConfig!$A:$C,3,FALSE)&"×"&O52 -> 九焰莲×1
A53: 49 | B53: 1 | C53: 49 | E53: 第49层 | G53: 1 | H53: 2049 | I53: 1403;1001 | J53: 1;26000 | L53: 1001 | M53: 1403 | N53: =ROUND(VLOOKUP(P53,[1]ResourceLevelConfig!$A:$C,3,FALSE)*0.01,0)*1000 -> 26000 | O53: 1 | P53: 151 | R53: 1001;1403 | S53: 26000;1 | U53: =VLOOKUP(L53,[2]ItemConfig!$A:$C,3,FALSE)&"×"&N53 -> 灵石×26000 | V53: =VLOOKUP(M53,[2]ItemConfig!$A:$C,3,FALSE)&"×"&O53 -> 上品增元丹×1
A54: 50 | B54: 1 | C54: 50 | E54: 第50层 | G54: 1 | H54: 2050 | I54: 1702;1001 | J54: 1;26000 | L54: 1001 | M54: 1702 | N54: =ROUND(VLOOKUP(P54,[1]ResourceLevelConfig!$A:$C,3,FALSE)*0.01,0)*1000 -> 26000 | O54: 1 | P54: 153 | R54: 1001;1702 | S54: 26000;1 | U54: =VLOOKUP(L54,[2]ItemConfig!$A:$C,3,FALSE)&"×"&N54 -> 灵石×26000 | V54: =VLOOKUP(M54,[2]ItemConfig!$A:$C,3,FALSE)&"×"&O54 -> 归识还元丹×1
A55: 51 | B55: 1 | C55: 51 | E55: 第51层 | G55: 1 | H55: 2051 | I55: 21012;1001 | J55: 1;26000 | L55: 1001 | M55: 21012 | N55: =ROUND(VLOOKUP(P55,[1]ResourceLevelConfig!$A:$C,3,FALSE)*0.01,0)*1000 -> 26000 | O55: 1 | P55: 156 | R55: 1001;21012 | S55: 26000;1 | U55: =VLOOKUP(L55,[2]ItemConfig!$A:$C,3,FALSE)&"×"&N55 -> 灵石×26000 | V55: =VLOOKUP(M55,[2]ItemConfig!$A:$C,3,FALSE)&"×"&O55 -> 紫色神识符×1
A56: 52 | B56: 1 | C56: 52 | E56: 第52层 | G56: 1 | H56: 2052 | I56: 1316;1001 | J56: 1;27000 | L56: 1001 | M56: =M52+1 -> 1316 | N56: =ROUND(VLOOKUP(P56,[1]ResourceLevelConfig!$A:$C,3,FALSE)*0.01,0)*1000 -> 27000 | O56: 1 | P56: 159 | R56: 1001;1316 | S56: 27000;1 | U56: =VLOOKUP(L56,[2]ItemConfig!$A:$C,3,FALSE)&"×"&N56 -> 灵石×27000 | V56: =VLOOKUP(M56,[2]ItemConfig!$A:$C,3,FALSE)&"×"&O56 -> 虚灵丹×1
A57: 53 | B57: 1 | C57: 53 | E57: 第53层 | G57: 1 | H57: 2053 | I57: 1403;1001 | J57: 1;27000 | L57: 1001 | M57: 1403 | N57: =ROUND(VLOOKUP(P57,[1]ResourceLevelConfig!$A:$C,3,FALSE)*0.01,0)*1000 -> 27000 | O57: 1 | P57: 161 | R57: 1001;1403 | S57: 27000;1 | U57: =VLOOKUP(L57,[2]ItemConfig!$A:$C,3,FALSE)&"×"&N57 -> 灵石×27000 | V57: =VLOOKUP(M57,[2]ItemConfig!$A:$C,3,FALSE)&"×"&O57 -> 上品增元丹×1
A58: 54 | B58: 1 | C58: 54 | E58: 第54层 | G58: 1 | H58: 2054 | I58: 1702;1001 | J58: 1;27000 | L58: 1001 | M58: 1702 | N58: =ROUND(VLOOKUP(P58,[1]ResourceLevelConfig!$A:$C,3,FALSE)*0.01,0)*1000 -> 27000 | O58: 1 | P58: 163 | R58: 1001;1702 | S58: 27000;1 | U58: =VLOOKUP(L58,[2]ItemConfig!$A:$C,3,FALSE)&"×"&N58 -> 灵石×27000 | V58: =VLOOKUP(M58,[2]ItemConfig!$A:$C,3,FALSE)&"×"&O58 -> 归识还元丹×1
A59: 55 | B59: 1 | C59: 55 | E59: 第55层 | G59: 1 | H59: 2055 | I59: 21012;1001 | J59: 1;28000 | L59: 1001 | M59: 21012 | N59: =ROUND(VLOOKUP(P59,[1]ResourceLevelConfig!$A:$C,3,FALSE)*0.01,0)*1000 -> 28000 | O59: 1 | P59: 166 | R59: 1001;21012 | S59: 28000;1 | U59: =VLOOKUP(L59,[2]ItemConfig!$A:$C,3,FALSE)&"×"&N59 -> 灵石×28000 | V59: =VLOOKUP(M59,[2]ItemConfig!$A:$C,3,FALSE)&"×"&O59 -> 紫色神识符×1
A60: 56 | B60: 1 | C60: 56 | E60: 第56层 | G60: 1 | H60: 2056 | I60: 1317;1001 | J60: 1;28000 | L60: 1001 | M60: =M56+1 -> 1317 | N60: =ROUND(VLOOKUP(P60,[1]ResourceLevelConfig!$A:$C,3,FALSE)*0.01,0)*1000 -> 28000 | O60: 1 | P60: 169 | R60: 1001;1317 | S60: 28000;1 | U60: =VLOOKUP(L60,[2]ItemConfig!$A:$C,3,FALSE)&"×"&N60 -> 灵石×28000 | V60: =VLOOKUP(M60,[2]ItemConfig!$A:$C,3,FALSE)&"×"&O60 -> 梦魇藤×1
A61: 57 | B61: 1 | C61: 57 | E61: 第57层 | G61: 1 | H61: 2057 | I61: 1403;1001 | J61: 1;28000 | L61: 1001 | M61: 1403 | N61: =ROUND(VLOOKUP(P61,[1]ResourceLevelConfig!$A:$C,3,FALSE)*0.01,0)*1000 -> 28000 | O61: 1 | P61: 171 | R61: 1001;1403 | S61: 28000;1 | U61: =VLOOKUP(L61,[2]ItemConfig!$A:$C,3,FALSE)&"×"&N61 -> 灵石×28000 | V61: =VLOOKUP(M61,[2]ItemConfig!$A:$C,3,FALSE)&"×"&O61 -> 上品增元丹×1
A62: 58 | B62: 1 | C62: 58 | E62: 第58层 | G62: 1 | H62: 2058 | I62: 1702;1001 | J62: 1;29000 | L62: 1001 | M62: 1702 | N62: =ROUND(VLOOKUP(P62,[1]ResourceLevelConfig!$A:$C,3,FALSE)*0.01,0)*1000 -> 29000 | O62: 1 | P62: 173 | R62: 1001;1702 | S62: 29000;1 | U62: =VLOOKUP(L62,[2]ItemConfig!$A:$C,3,FALSE)&"×"&N62 -> 灵石×29000 | V62: =VLOOKUP(M62,[2]ItemConfig!$A:$C,3,FALSE)&"×"&O62 -> 归识还元丹×1
A63: 59 | B63: 1 | C63: 59 | E63: 第59层 | G63: 1 | H63: 2059 | I63: 21012;1001 | J63: 1;29000 | L63: 1001 | M63: 21012 | N63: =ROUND(VLOOKUP(P63,[1]ResourceLevelConfig!$A:$C,3,FALSE)*0.01,0)*1000 -> 29000 | O63: 1 | P63: 176 | R63: 1001;21012 | S63: 29000;1 | U63: =VLOOKUP(L63,[2]ItemConfig!$A:$C,3,FALSE)&"×"&N63 -> 灵石×29000 | V63: =VLOOKUP(M63,[2]ItemConfig!$A:$C,3,FALSE)&"×"&O63 -> 紫色神识符×1
A64: 60 | B64: 1 | C64: 60 | E64: 第60层 | G64: 1 | H64: 2060 | I64: 1318;1001 | J64: 1;30000 | L64: 1001 | M64: =M60+1 -> 1318 | N64: =ROUND(VLOOKUP(P64,[1]ResourceLevelConfig!$A:$C,3,FALSE)*0.01,0)*1000 -> 30000 | O64: 1 | P64: 179 | R64: 1001;1318 | S64: 30000;1 | U64: =VLOOKUP(L64,[2]ItemConfig!$A:$C,3,FALSE)&"×"&N64 -> 灵石×30000 | V64: =VLOOKUP(M64,[2]ItemConfig!$A:$C,3,FALSE)&"×"&O64 -> 混沌合晶×1
A65: 61 | B65: 1 | C65: 61 | E65: 第61层 | G65: 1 | H65: 2061 | I65: 1403;1001 | J65: 1;30000 | L65: 1001 | M65: 1403 | N65: =ROUND(VLOOKUP(P65,[1]ResourceLevelConfig!$A:$C,3,FALSE)*0.01,0)*1000 -> 30000 | O65: 1 | P65: 181 | R65: 1001;1403 | S65: 30000;1 | U65: =VLOOKUP(L65,[2]ItemConfig!$A:$C,3,FALSE)&"×"&N65 -> 灵石×30000 | V65: =VLOOKUP(M65,[2]ItemConfig!$A:$C,3,FALSE)&"×"&O65 -> 上品增元丹×1
A66: 62 | B66: 1 | C66: 62 | E66: 第62层 | G66: 1 | H66: 2062 | I66: 1702;1001 | J66: 1;30000 | L66: 1001 | M66: 1702 | N66: =ROUND(VLOOKUP(P66,[1]ResourceLevelConfig!$A:$C,3,FALSE)*0.01,0)*1000 -> 30000 | O66: 1 | P66: 183 | R66: 1001;1702 | S66: 30000;1 | U66: =VLOOKUP(L66,[2]ItemConfig!$A:$C,3,FALSE)&"×"&N66 -> 灵石×30000 | V66: =VLOOKUP(M66,[2]ItemConfig!$A:$C,3,FALSE)&"×"&O66 -> 归识还元丹×1
A67: 63 | B67: 1 | C67: 63 | E67: 第63层 | G67: 1 | H67: 2063 | I67: 21012;1001 | J67: 1;31000 | L67: 1001 | M67: 21012 | N67: =ROUND(VLOOKUP(P67,[1]ResourceLevelConfig!$A:$C,3,FALSE)*0.01,0)*1000 -> 31000 | O67: 1 | P67: 186 | R67: 1001;21012 | S67: 31000;1 | U67: =VLOOKUP(L67,[2]ItemConfig!$A:$C,3,FALSE)&"×"&N67 -> 灵石×31000 | V67: =VLOOKUP(M67,[2]ItemConfig!$A:$C,3,FALSE)&"×"&O67 -> 紫色神识符×1
A68: 64 | B68: 1 | C68: 64 | E68: 第64层 | G68: 1 | H68: 2064 | I68: 1319;1001 | J68: 1;31000 | L68: 1001 | M68: =M64+1 -> 1319 | N68: =ROUND(VLOOKUP(P68,[1]ResourceLevelConfig!$A:$C,3,FALSE)*0.01,0)*1000 -> 31000 | O68: 1 | P68: 189 | R68: 1001;1319 | S68: 31000;1 | U68: =VLOOKUP(L68,[2]ItemConfig!$A:$C,3,FALSE)&"×"&N68 -> 灵石×31000 | V68: =VLOOKUP(M68,[2]ItemConfig!$A:$C,3,FALSE)&"×"&O68 -> 天合草×1
A69: 65 | B69: 1 | C69: 65 | E69: 第65层 | G69: 1 | H69: 2065 | I69: 1403;1001 | J69: 1;31000 | L69: 1001 | M69: 1403 | N69: =ROUND(VLOOKUP(P69,[1]ResourceLevelConfig!$A:$C,3,FALSE)*0.01,0)*1000 -> 31000 | O69: 1 | P69: 191 | R69: 1001;1403 | S69: 31000;1 | U69: =VLOOKUP(L69,[2]ItemConfig!$A:$C,3,FALSE)&"×"&N69 -> 灵石×31000 | V69: =VLOOKUP(M69,[2]ItemConfig!$A:$C,3,FALSE)&"×"&O69 -> 上品增元丹×1
A70: 66 | B70: 1 | C70: 66 | E70: 第66层 | G70: 1 | H70: 2066 | I70: =CONCATENATE(M70,";",L70) -> 1702;1001 | J70: =CONCATENATE(O70,";",N70) -> 1;32000 | L70: 1001 | M70: 1702 | N70: =ROUND(VLOOKUP(P70,[1]ResourceLevelConfig!$A:$C,3,FALSE)*0.01,0)*1000 -> 32000 | O70: 1 | P70: 193 | R70: =_xlfn.TEXTJOIN(";",1,L70:M70) -> 1001;1702 | S70: =_xlfn.TEXTJOIN(";",1,N70:O70) -> 32000;1 | U70: =VLOOKUP(L70,[2]ItemConfig!$A:$C,3,FALSE)&"×"&N70 -> 灵石×32000 | V70: =VLOOKUP(M70,[2]ItemConfig!$A:$C,3,FALSE)&"×"&O70 -> 归识还元丹×1
A71: 67 | B71: 1 | C71: 67 | E71: 第67层 | G71: 1 | H71: 2067 | I71: 21012;1001 | J71: 1;32000 | L71: 1001 | M71: 21012 | N71: =ROUND(VLOOKUP(P71,[1]ResourceLevelConfig!$A:$C,3,FALSE)*0.01,0)*1000 -> 32000 | O71: 1 | P71: 196 | R71: 1001;21012 | S71: 32000;1 | U71: =VLOOKUP(L71,[2]ItemConfig!$A:$C,3,FALSE)&"×"&N71 -> 灵石×32000 | V71: =VLOOKUP(M71,[2]ItemConfig!$A:$C,3,FALSE)&"×"&O71 -> 紫色神识符×1
A72: 68 | B72: 1 | C72: 68 | E72: 第68层 | G72: 1 | H72: 2068 | I72: 1320;1001 | J72: 1;33000 | L72: 1001 | M72: =M68+1 -> 1320 | N72: =ROUND(VLOOKUP(P72,[1]ResourceLevelConfig!$A:$C,3,FALSE)*0.01,0)*1000 -> 33000 | O72: 1 | P72: 199 | R72: 1001;1320 | S72: 33000;1 | U72: =VLOOKUP(L72,[2]ItemConfig!$A:$C,3,FALSE)&"×"&N72 -> 灵石×33000 | V72: =VLOOKUP(M72,[2]ItemConfig!$A:$C,3,FALSE)&"×"&O72 -> 合元丹×1
A73: 69 | B73: 1 | C73: 69 | E73: 第69层 | G73: 1 | H73: 2069 | I73: 1404;1001 | J73: 1;33000 | L73: 1001 | M73: 1404 | N73: =ROUND(VLOOKUP(P73,[1]ResourceLevelConfig!$A:$C,3,FALSE)*0.01,0)*1000 -> 33000 | O73: 1 | P73: 201 | R73: 1001;1404 | S73: 33000;1 | U73: =VLOOKUP(L73,[2]ItemConfig!$A:$C,3,FALSE)&"×"&N73 -> 灵石×33000 | V73: =VLOOKUP(M73,[2]ItemConfig!$A:$C,3,FALSE)&"×"&O73 -> 极品增元丹×1
A74: 70 | B74: 1 | C74: 70 | E74: 第70层 | G74: 1 | H74: 2070 | I74: 1702;1001 | J74: 1;33000 | L74: 1001 | M74: 1702 | N74: =ROUND(VLOOKUP(P74,[1]ResourceLevelConfig!$A:$C,3,FALSE)*0.01,0)*1000 -> 33000 | O74: 1 | P74: =P70+10 -> 203 | R74: 1001;1702 | S74: 33000;1 | U74: =VLOOKUP(L74,[2]ItemConfig!$A:$C,3,FALSE)&"×"&N74 -> 灵石×33000 | V74: =VLOOKUP(M74,[2]ItemConfig!$A:$C,3,FALSE)&"×"&O74 -> 归识还元丹×1
A75: 71 | B75: 1 | C75: 71 | E75: 第71层 | G75: 1 | H75: 2071 | I75: 21012;1001 | J75: 1;34000 | L75: 1001 | M75: 21012 | N75: =ROUND(VLOOKUP(P75,[1]ResourceLevelConfig!$A:$C,3,FALSE)*0.01,0)*1000 -> 34000 | O75: 1 | P75: 206 | R75: 1001;21012 | S75: 34000;1 | U75: =VLOOKUP(L75,[2]ItemConfig!$A:$C,3,FALSE)&"×"&N75 -> 灵石×34000 | V75: =VLOOKUP(M75,[2]ItemConfig!$A:$C,3,FALSE)&"×"&O75 -> 紫色神识符×1
A76: 72 | B76: 1 | C76: 72 | E76: 第72层 | G76: 1 | H76: 2072 | I76: 1321;1001 | J76: 1;34000 | L76: 1001 | M76: =M72+1 -> 1321 | N76: =ROUND(VLOOKUP(P76,[1]ResourceLevelConfig!$A:$C,3,FALSE)*0.01,0)*1000 -> 34000 | O76: 1 | P76: 209 | R76: 1001;1321 | S76: 34000;1 | U76: =VLOOKUP(L76,[2]ItemConfig!$A:$C,3,FALSE)&"×"&N76 -> 灵石×34000 | V76: =VLOOKUP(M76,[2]ItemConfig!$A:$C,3,FALSE)&"×"&O76 -> 鸿蒙紫华×1
A77: 73 | B77: 1 | C77: 73 | E77: 第73层 | G77: 1 | H77: 2073 | I77: 1404;1001 | J77: 1;35000 | L77: 1001 | M77: 1404 | N77: =ROUND(VLOOKUP(P77,[1]ResourceLevelConfig!$A:$C,3,FALSE)*0.01,0)*1000 -> 35000 | O77: 1 | P77: 211 | R77: 1001;1404 | S77: 35000;1 | U77: =VLOOKUP(L77,[2]ItemConfig!$A:$C,3,FALSE)&"×"&N77 -> 灵石×35000 | V77: =VLOOKUP(M77,[2]ItemConfig!$A:$C,3,FALSE)&"×"&O77 -> 极品增元丹×1
A78: 74 | B78: 1 | C78: 74 | E78: 第74层 | G78: 1 | H78: 2074 | I78: 1702;1001 | J78: 1;35000 | L78: 1001 | M78: 1702 | N78: =ROUND(VLOOKUP(P78,[1]ResourceLevelConfig!$A:$C,3,FALSE)*0.01,0)*1000 -> 35000 | O78: 1 | P78: 213 | R78: 1001;1702 | S78: 35000;1 | U78: =VLOOKUP(L78,[2]ItemConfig!$A:$C,3,FALSE)&"×"&N78 -> 灵石×35000 | V78: =VLOOKUP(M78,[2]ItemConfig!$A:$C,3,FALSE)&"×"&O78 -> 归识还元丹×1
A79: 75 | B79: 1 | C79: 75 | E79: 第75层 | G79: 1 | H79: 2075 | I79: 21012;1001 | J79: 1;35000 | L79: 1001 | M79: 21012 | N79: =ROUND(VLOOKUP(P79,[1]ResourceLevelConfig!$A:$C,3,FALSE)*0.01,0)*1000 -> 35000 | O79: 1 | P79: 216 | R79: 1001;21012 | S79: 35000;1 | U79: =VLOOKUP(L79,[2]ItemConfig!$A:$C,3,FALSE)&"×"&N79 -> 灵石×35000 | V79: =VLOOKUP(M79,[2]ItemConfig!$A:$C,3,FALSE)&"×"&O79 -> 紫色神识符×1
A80: 76 | B80: 1 | C80: 76 | E80: 第76层 | G80: 1 | H80: 2076 | I80: 1322;1001 | J80: 1;36000 | L80: 1001 | M80: =M76+1 -> 1322 | N80: =ROUND(VLOOKUP(P80,[1]ResourceLevelConfig!$A:$C,3,FALSE)*0.01,0)*1000 -> 36000 | O80: 1 | P80: 219 | R80: 1001;1322 | S80: 36000;1 | U80: =VLOOKUP(L80,[2]ItemConfig!$A:$C,3,FALSE)&"×"&N80 -> 灵石×36000 | V80: =VLOOKUP(M80,[2]ItemConfig!$A:$C,3,FALSE)&"×"&O80 -> 九曜花×1
A81: 77 | B81: 1 | C81: 77 | E81: 第77层 | G81: 1 | H81: 2077 | I81: 1404;1001 | J81: 1;36000 | L81: 1001 | M81: 1404 | N81: =ROUND(VLOOKUP(P81,[1]ResourceLevelConfig!$A:$C,3,FALSE)*0.01,0)*1000 -> 36000 | O81: 1 | P81: 221 | R81: 1001;1404 | S81: 36000;1 | U81: =VLOOKUP(L81,[2]ItemConfig!$A:$C,3,FALSE)&"×"&N81 -> 灵石×36000 | V81: =VLOOKUP(M81,[2]ItemConfig!$A:$C,3,FALSE)&"×"&O81 -> 极品增元丹×1
A82: 78 | B82: 1 | C82: 78 | E82: 第78层 | G82: 1 | H82: 2078 | I82: 1702;1001 | J82: 1;37000 | L82: 1001 | M82: 1702 | N82: =ROUND(VLOOKUP(P82,[1]ResourceLevelConfig!$A:$C,3,FALSE)*0.01,0)*1000 -> 37000 | O82: 1 | P82: 223 | R82: 1001;1702 | S82: 37000;1 | U82: =VLOOKUP(L82,[2]ItemConfig!$A:$C,3,FALSE)&"×"&N82 -> 灵石×37000 | V82: =VLOOKUP(M82,[2]ItemConfig!$A:$C,3,FALSE)&"×"&O82 -> 归识还元丹×1
A83: 79 | B83: 1 | C83: 79 | E83: 第79层 | G83: 1 | H83: 2079 | I83: 21012;1001 | J83: 1;37000 | L83: 1001 | M83: 21012 | N83: =ROUND(VLOOKUP(P83,[1]ResourceLevelConfig!$A:$C,3,FALSE)*0.01,0)*1000 -> 37000 | O83: 1 | P83: 226 | R83: 1001;21012 | S83: 37000;1 | U83: =VLOOKUP(L83,[2]ItemConfig!$A:$C,3,FALSE)&"×"&N83 -> 灵石×37000 | V83: =VLOOKUP(M83,[2]ItemConfig!$A:$C,3,FALSE)&"×"&O83 -> 紫色神识符×1
A84: 80 | B84: 1 | C84: 80 | E84: 第80层 | G84: 1 | H84: 2080 | I84: 1323;1001 | J84: 1;38000 | L84: 1001 | M84: =M80+1 -> 1323 | N84: =ROUND(VLOOKUP(P84,[1]ResourceLevelConfig!$A:$C,3,FALSE)*0.01,0)*1000 -> 38000 | O84: 1 | P84: 229 | R84: 1001;1323 | S84: 38000;1 | U84: =VLOOKUP(L84,[2]ItemConfig!$A:$C,3,FALSE)&"×"&N84 -> 灵石×38000 | V84: =VLOOKUP(M84,[2]ItemConfig!$A:$C,3,FALSE)&"×"&O84 -> 天衍丹×1
A85: 81 | B85: 1 | C85: 81 | E85: 第81层 | G85: 1 | H85: 2081 | I85: 1404;1001 | J85: 1;38000 | L85: 1001 | M85: 1404 | N85: =ROUND(VLOOKUP(P85,[1]ResourceLevelConfig!$A:$C,3,FALSE)*0.01,0)*1000 -> 38000 | O85: 1 | P85: 231 | R85: 1001;1404 | S85: 38000;1 | U85: =VLOOKUP(L85,[2]ItemConfig!$A:$C,3,FALSE)&"×"&N85 -> 灵石×38000 | V85: =VLOOKUP(M85,[2]ItemConfig!$A:$C,3,FALSE)&"×"&O85 -> 极品增元丹×1
A86: 82 | B86: 1 | C86: 82 | E86: 第82层 | G86: 1 | H86: 2082 | I86: 1702;1001 | J86: 1;39000 | L86: 1001 | M86: 1702 | N86: =ROUND(VLOOKUP(P86,[1]ResourceLevelConfig!$A:$C,3,FALSE)*0.01,0)*1000 -> 39000 | O86: 1 | P86: 233 | R86: 1001;1702 | S86: 39000;1 | U86: =VLOOKUP(L86,[2]ItemConfig!$A:$C,3,FALSE)&"×"&N86 -> 灵石×39000 | V86: =VLOOKUP(M86,[2]ItemConfig!$A:$C,3,FALSE)&"×"&O86 -> 归识还元丹×1
A87: 83 | B87: 1 | C87: 83 | E87: 第83层 | G87: 1 | H87: 2083 | I87: 21012;1001 | J87: 1;39000 | L87: 1001 | M87: 21012 | N87: =ROUND(VLOOKUP(P87,[1]ResourceLevelConfig!$A:$C,3,FALSE)*0.01,0)*1000 -> 39000 | O87: 1 | P87: 236 | R87: 1001;21012 | S87: 39000;1 | U87: =VLOOKUP(L87,[2]ItemConfig!$A:$C,3,FALSE)&"×"&N87 -> 灵石×39000 | V87: =VLOOKUP(M87,[2]ItemConfig!$A:$C,3,FALSE)&"×"&O87 -> 紫色神识符×1
A88: 84 | B88: 1 | C88: 84 | E88: 第84层 | G88: 1 | H88: 2084 | I88: 1324;1001 | J88: 1;40000 | L88: 1001 | M88: =M84+1 -> 1324 | N88: =ROUND(VLOOKUP(P88,[1]ResourceLevelConfig!$A:$C,3,FALSE)*0.01,0)*1000 -> 40000 | O88: 1 | P88: 239 | R88: 1001;1324 | S88: 40000;1 | U88: =VLOOKUP(L88,[2]ItemConfig!$A:$C,3,FALSE)&"×"&N88 -> 灵石×40000 | V88: =VLOOKUP(M88,[2]ItemConfig!$A:$C,3,FALSE)&"×"&O88 -> 开天古藤×1
A89: 85 | B89: 1 | C89: 85 | E89: 第85层 | G89: 1 | H89: 2085 | I89: 1404;1001 | J89: 1;40000 | L89: 1001 | M89: 1404 | N89: =ROUND(VLOOKUP(P89,[1]ResourceLevelConfig!$A:$C,3,FALSE)*0.01,0)*1000 -> 40000 | O89: 1 | P89: 241 | R89: 1001;1404 | S89: 40000;1 | U89: =VLOOKUP(L89,[2]ItemConfig!$A:$C,3,FALSE)&"×"&N89 -> 灵石×40000 | V89: =VLOOKUP(M89,[2]ItemConfig!$A:$C,3,FALSE)&"×"&O89 -> 极品增元丹×1
A90: 86 | B90: 1 | C90: 86 | E90: 第86层 | G90: 1 | H90: 2086 | I90: 1702;1001 | J90: 1;41000 | L90: 1001 | M90: 1702 | N90: =ROUND(VLOOKUP(P90,[1]ResourceLevelConfig!$A:$C,3,FALSE)*0.01,0)*1000 -> 41000 | O90: 1 | P90: 243 | R90: 1001;1702 | S90: 41000;1 | U90: =VLOOKUP(L90,[2]ItemConfig!$A:$C,3,FALSE)&"×"&N90 -> 灵石×41000 | V90: =VLOOKUP(M90,[2]ItemConfig!$A:$C,3,FALSE)&"×"&O90 -> 归识还元丹×1
A91: 87 | B91: 1 | C91: 87 | E91: 第87层 | G91: 1 | H91: 2087 | I91: 21012;1001 | J91: 1;41000 | L91: 1001 | M91: 21012 | N91: =ROUND(VLOOKUP(P91,[1]ResourceLevelConfig!$A:$C,3,FALSE)*0.01,0)*1000 -> 41000 | O91: 1 | P91: 246 | R91: 1001;21012 | S91: 41000;1 | U91: =VLOOKUP(L91,[2]ItemConfig!$A:$C,3,FALSE)&"×"&N91 -> 灵石×41000 | V91: =VLOOKUP(M91,[2]ItemConfig!$A:$C,3,FALSE)&"×"&O91 -> 紫色神识符×1
A92: 88 | B92: 1 | C92: 88 | E92: 第88层 | G92: 1 | H92: 2088 | I92: 1325;1001 | J92: 1;42000 | L92: 1001 | M92: =M88+1 -> 1325 | N92: =ROUND(VLOOKUP(P92,[1]ResourceLevelConfig!$A:$C,3,FALSE)*0.01,0)*1000 -> 42000 | O92: 1 | P92: 249 | R92: 1001;1325 | S92: 42000;1 | U92: =VLOOKUP(L92,[2]ItemConfig!$A:$C,3,FALSE)&"×"&N92 -> 灵石×42000 | V92: =VLOOKUP(M92,[2]ItemConfig!$A:$C,3,FALSE)&"×"&O92 -> 避雷藤×1
A93: 89 | B93: 1 | C93: 89 | E93: 第89层 | G93: 1 | H93: 2089 | I93: 1404;1001 | J93: 1;42000 | L93: 1001 | M93: 1404 | N93: =ROUND(VLOOKUP(P93,[1]ResourceLevelConfig!$A:$C,3,FALSE)*0.01,0)*1000 -> 42000 | O93: 1 | P93: 251 | R93: 1001;1404 | S93: 42000;1 | U93: =VLOOKUP(L93,[2]ItemConfig!$A:$C,3,FALSE)&"×"&N93 -> 灵石×42000 | V93: =VLOOKUP(M93,[2]ItemConfig!$A:$C,3,FALSE)&"×"&O93 -> 极品增元丹×1
A94: 90 | B94: 1 | C94: 90 | E94: 第90层 | G94: 1 | H94: 2090 | I94: 1702;1001 | J94: 1;43000 | L94: 1001 | M94: 1702 | N94: =ROUND(VLOOKUP(P94,[1]ResourceLevelConfig!$A:$C,3,FALSE)*0.01,0)*1000 -> 43000 | O94: 1 | P94: 253 | R94: 1001;1702 | S94: 43000;1 | U94: =VLOOKUP(L94,[2]ItemConfig!$A:$C,3,FALSE)&"×"&N94 -> 灵石×43000 | V94: =VLOOKUP(M94,[2]ItemConfig!$A:$C,3,FALSE)&"×"&O94 -> 归识还元丹×1
A95: 91 | B95: 1 | C95: 91 | E95: 第91层 | G95: 1 | H95: 2091 | I95: 21012;1001 | J95: 1;43000 | L95: 1001 | M95: 21012 | N95: =ROUND(VLOOKUP(P95,[1]ResourceLevelConfig!$A:$C,3,FALSE)*0.01,0)*1000 -> 43000 | O95: 1 | P95: 256 | R95: 1001;21012 | S95: 43000;1 | U95: =VLOOKUP(L95,[2]ItemConfig!$A:$C,3,FALSE)&"×"&N95 -> 灵石×43000 | V95: =VLOOKUP(M95,[2]ItemConfig!$A:$C,3,FALSE)&"×"&O95 -> 紫色神识符×1
A96: 92 | B96: 1 | C96: 92 | E96: 第92层 | G96: 1 | H96: 2092 | I96: 1326;1001 | J96: 1;44000 | L96: 1001 | M96: =M92+1 -> 1326 | N96: =ROUND(VLOOKUP(P96,[1]ResourceLevelConfig!$A:$C,3,FALSE)*0.01,0)*1000 -> 44000 | O96: 1 | P96: 260 | R96: 1001;1326 | S96: 44000;1 | U96: =VLOOKUP(L96,[2]ItemConfig!$A:$C,3,FALSE)&"×"&N96 -> 灵石×44000 | V96: =VLOOKUP(M96,[2]ItemConfig!$A:$C,3,FALSE)&"×"&O96 -> 渡元丹×1
A97: 93 | B97: 1 | C97: 93 | E97: 第93层 | G97: 1 | H97: 2093 | I97: 1703;1001 | J97: 1;45000 | L97: 1001 | M97: 1703 | N97: =ROUND(VLOOKUP(P97,[1]ResourceLevelConfig!$A:$C,3,FALSE)*0.01,0)*1000 -> 45000 | O97: 1 | P97: 265 | R97: 1001;1703 | S97: 45000;1 | U97: =VLOOKUP(L97,[2]ItemConfig!$A:$C,3,FALSE)&"×"&N97 -> 灵石×45000 | V97: =VLOOKUP(M97,[2]ItemConfig!$A:$C,3,FALSE)&"×"&O97 -> 净识还元丹×1
A98: 94 | B98: 1 | C98: 94 | E98: 第94层 | G98: 1 | H98: 2094 | I98: 1327;1001 | J98: 1;46000 | L98: 1001 | M98: 1327 | N98: =ROUND(VLOOKUP(P98,[1]ResourceLevelConfig!$A:$C,3,FALSE)*0.01,0)*1000 -> 46000 | O98: 1 | P98: 270 | R98: 1001;1327 | S98: 46000;1 | U98: =VLOOKUP(L98,[2]ItemConfig!$A:$C,3,FALSE)&"×"&N98 -> 灵石×46000 | V98: =VLOOKUP(M98,[2]ItemConfig!$A:$C,3,FALSE)&"×"&O98 -> 天衍花×1
A99: 95 | B99: 1 | C99: 95 | E99: 第95层 | G99: 1 | H99: 2095 | I99: 1703;1001 | J99: 1;48000 | L99: 1001 | M99: 1703 | N99: =ROUND(VLOOKUP(P99,[1]ResourceLevelConfig!$A:$C,3,FALSE)*0.01,0)*1000 -> 48000 | O99: 1 | P99: 275 | R99: 1001;1703 | S99: 48000;1 | U99: =VLOOKUP(L99,[2]ItemConfig!$A:$C,3,FALSE)&"×"&N99 -> 灵石×48000 | V99: =VLOOKUP(M99,[2]ItemConfig!$A:$C,3,FALSE)&"×"&O99 -> 净识还元丹×1
A100: 96 | B100: 1 | C100: 96 | E100: 第96层 | G100: 1 | H100: 2096 | I100: 1328;1001 | J100: 1;49000 | L100: 1001 | M100: 1328 | N100: =ROUND(VLOOKUP(P100,[1]ResourceLevelConfig!$A:$C,3,FALSE)*0.01,0)*1000 -> 49000 | O100: 1 | P100: 280 | R100: 1001;1328 | S100: 49000;1 | U100: =VLOOKUP(L100,[2]ItemConfig!$A:$C,3,FALSE)&"×"&N100 -> 灵石×49000 | V100: =VLOOKUP(M100,[2]ItemConfig!$A:$C,3,FALSE)&"×"&O100 -> 归墟之泪×1
A101: 97 | B101: 1 | C101: 97 | E101: 第97层 | G101: 1 | H101: 2097 | I101: 1703;1001 | J101: 1;50000 | L101: 1001 | M101: 1703 | N101: =ROUND(VLOOKUP(P101,[1]ResourceLevelConfig!$A:$C,3,FALSE)*0.01,0)*1000 -> 50000 | O101: 1 | P101: 285 | R101: 1001;1703 | S101: 50000;1 | U101: =VLOOKUP(L101,[2]ItemConfig!$A:$C,3,FALSE)&"×"&N101 -> 灵石×50000 | V101: =VLOOKUP(M101,[2]ItemConfig!$A:$C,3,FALSE)&"×"&O101 -> 净识还元丹×1
A102: 98 | B102: 1 | C102: 98 | E102: 第98层 | G102: 1 | H102: 2098 | I102: 1329;1001 | J102: 1;51000 | L102: 1001 | M102: 1329 | N102: =ROUND(VLOOKUP(P102,[1]ResourceLevelConfig!$A:$C,3,FALSE)*0.01,0)*1000 -> 51000 | O102: 1 | P102: 290 | R102: 1001;1329 | S102: 51000;1 | U102: =VLOOKUP(L102,[2]ItemConfig!$A:$C,3,FALSE)&"×"&N102 -> 灵石×51000 | V102: =VLOOKUP(M102,[2]ItemConfig!$A:$C,3,FALSE)&"×"&O102 -> 寂灭之心×1
A103: 99 | B103: 1 | C103: 99 | E103: 第99层 | G103: 1 | H103: 2099 | I103: 1703;1001 | J103: 1;53000 | L103: 1001 | M103: 1703 | N103: =ROUND(VLOOKUP(P103,[1]ResourceLevelConfig!$A:$C,3,FALSE)*0.01,0)*1000 -> 53000 | O103: 1 | P103: 295 | R103: 1001;1703 | S103: 53000;1 | U103: =VLOOKUP(L103,[2]ItemConfig!$A:$C,3,FALSE)&"×"&N103 -> 灵石×53000 | V103: =VLOOKUP(M103,[2]ItemConfig!$A:$C,3,FALSE)&"×"&O103 -> 净识还元丹×1
A104: 100 | B104: 1 | C104: 100 | E104: 第100层 | G104: 1 | H104: 2100 | I104: 1330;1001 | J104: 1;54000 | L104: 1001 | M104: 1330 | N104: =ROUND(VLOOKUP(P104,[1]ResourceLevelConfig!$A:$C,3,FALSE)*0.01,0)*1000 -> 54000 | O104: 1 | P104: 300 | R104: 1001;1330 | S104: 54000;1 | U104: =VLOOKUP(L104,[2]ItemConfig!$A:$C,3,FALSE)&"×"&N104 -> 灵石×54000 | V104: =VLOOKUP(M104,[2]ItemConfig!$A:$C,3,FALSE)&"×"&O104 -> 九天露华×1
